Cogmind - Beta 13 *** ADVENTURER MODE // 2024.03.23 @ 03:43:46 Player: BC the OG Result: Destroyed by as-48575 with Assembled Blade Performance ------------- Evolutions (0) 0 Regions Visited (2) 400 Robots Destroyed (4) 20 Value Destroyed (83) 83 Prototype IDs (2) 40 Alien Tech Used (0) 0 Bonus (0) 0 TOTAL SCORE: 543 Bonus ------- None Cogmind --------- Core Integrity 0/250 Matter 252/300 Energy 100/100 System Corruption 0% Temperature Cool (0) Movement Treading (160) Location -10/Mines Parts ------- > --- POWER (1) -------- (None) > --- PROPULSION (2) --- Light Treads > --- UTILITY (2) ------ Small Storage Unit > --- WEAPON (2) ------- Light Assault Rifle > --- INVENTORY (8) ---- Aluminum Leg Small Matter Pod (50) Peak State ------------ > --- POWER ------------ Ion Engine > --- PROPULSION ------- Aluminum Leg Aluminum Leg > --- UTILITY ---------- Small Storage Unit > --- WEAPON ----------- Medium Laser > --- INVENTORY -------- Light Ion Engine Light Treads Light Treads Aluminum Leg Light Assault Rifle Light Assault Rifle Light Assault Rifle [Rating: 5] Favorites ----------- Power Ion Engine Engine Ion Engine Propulsion Aluminum Leg Treads Light Treads Leg Aluminum Leg Utility Small Storage Unit Storage Small Storage Unit Weapon Medium Laser Energy Gun Medium Laser Ballistic Gun Light Assault Rifle Build | -11 -10 -10 ------- Run | Yrd Mat Min Slots Evolved . | . . . Power . | . . . Propulsion . | . . . Utility . | . . . Weapon . | . . . Parts Attached 11 | 4 1 6 Power 2 | 1 . 1 Engine 2 | 1 . 1 Core . | . . . Reactor . | . . . Propulsion 4 | 2 . 2 Treads 2 | . . 2 Leg 2 | 2 . . Wheel . | . . . Hover . | . . . Flight . | . . . Utility 1 | 1 . . Device . | . . . Storage 1 | 1 . . Processor . | . . . Hackware . | . . . Protection . | . . . Artifact . | . . . Weapon 4 | . 1 3 Energy Gun 1 | . 1 . Energy Cannon . | . . . Ballistic Gun 3 | . . 3 Ballistic Cannon . | . . . Launcher . | . . . Special Weapon . | . . . Impact Weapon . | . . . Slashing Weapon . | . . . Piercing Weapon . | . . . Special Melee Weapon . | . . . Unidentified Prototypes . | . . . Parts Lost 7 | . . 7 Power 2 | . . 2 Propulsion 2 | . . 2 Utility . | . . . Weapon 3 | . . 3 Highest Loss Streak 4 | . . 4 To Critical Strikes . | . . . Average Slot Usage (%) 68 | . 68 68 Engine 13 | . 14 12 Treads 1 | . . 2 Leg 25 | . 28 24 Storage 14 | . 14 14 Energy Gun 10 | . 11 10 Ballistic Gun 2 | . . 3 Naked Turns . | . . . Heaviest Build 12 | 10 12 12 Greatest Support 40 | 20 20 40 Greatest Overweight (x) 2 | . . 2 Average Overweight (x) . | . . . Largest Inventory Capacity 8 | 8 8 8 Average Capacity 7 | 7 8 8 Most Carried 8 | 8 8 8 Average Carried 7 | 4 7 7 Final Capacity 8 | 8 8 8 Final Carried 8 | 8 8 2 Class Distribution -------------------- 100% | Mutant Dominant Class ---------------- Mutant | -10/Materials Mutant | -10/Mines Resources | -11 -10 -10 ----------- Run | Yrd Mat Min Matter Collected 296 | 235 15 46 Remotely . | . . . Salvage Created 46 | . . 46 Parts . | . . . Haulers Intercepted . | . . . Recyclers Shooed 1 | . . 1 Parts Field Recycled . | . . . Retrieved Matter . | . . . Parts Self-Destructed . | . . . Prevented . | . . . Kills | -11 -10 -10 ------- Run | Yrd Mat Min Combat Hostiles Destroyed 4 | . . 4 Guns 4 | . . 4 Classes Destroyed 2 | . . 2 Swarmer 3 | . . 3 Demolisher 1 | . . 1 Best Kill Streak 3 | . . 3 Combat Bots Only 3 | . . 3 Max Kills in Single Turn 1 | . . 1 Gunslinging . | . . . Exploded . | . . . Melee . | . . . Uniques/NPCs Destroyed . | . . . Combat | -11 -10 -10 -------- Run | Yrd Mat Min Hostile Shots Fired 100 | . . 100 Missed 30 | . . 30 Damage Taken 1126 | . . 1126 Core 270 | . . 270 Absorbed by Shields . | . . . Ignored by Resistances 319 | . . 319 Core Remaining (%) 100 | 100 . . Volleys Fired 30 | . . 30 Largest 1 | . . 1 Hottest 50 | . . 50 Shots Fired 30 | . . 30 Gun 30 | . . 30 Cannon . | . . . Launcher . | . . . Special . | . . . Kinetic 20 | . . 20 Thermal 10 | . . 10 Explosive . | . . . Electromagnetic . | . . . Robot Hit Streak 12 | . . 12 Robot Miss Streak 2 | . . 2 Penetration Max . | . . . Secondary Targets . | . . . Shots Hit Robots 23 | . . 23 Core Hits 12 | . . 12 Critical Kills . | . . . Critical Parts Destroyed . | . . . Critical Strikes . | . . . Melee Attacks . | . . . Impact . | . . . Slashing . | . . . Piercing . | . . . Sneak Attacks . | . . . Combat Hostiles . | . . . Follow-up Attacks . | . . . Damage Inflicted 233 | . . 233 Guns 222 | . . 222 Cannons . | . . . Explosions . | . . . Melee . | . . . Ramming 11 | . . 11 Kinetic 108 | . . 108 Thermal 114 | . . 114 Explosive . | . . . Electromagnetic . | . . . Impact . | . . . Slashing . | . . . Piercing . | . . . Highest Corruption . | . . . Average Corruption . | . . . Corruption Purged . | . . . Corruption Blocked . | . . . Overload Shots . | . . . Overflow Damage . | . . . Projectiles . | . . . Explosions . | . . . Melee . | . . . Knockbacks . | . . . Impact . | . . . Kinetic . | . . . Secondary . | . . . Self-Inflicted Damage . | . . . Shots . | . . . Rammed . | . . . Targets Rammed 2 | . . 2 Kicked 2 | . . 2 Crushed . | . . . Highest Temperature 67 | . . 67 Average Temperature 30 | . . 30 Received Heat Transfer 90 | . . 90 Siege Activations . | . . . Robots Corrupted . | . . . Combat Hostiles . | . . . Parts Fried . | . . . Impact Corruptions . | . . . Robots Melted . | . . . Combat Hostiles . | . . . Parts Melted . | . . . Heat Transferred 333 | . . 333 Parts Sabotaged . | . . . Parts Stolen . | . . . Parts Stripped . | . . . Power Chain Reactions . | . . . Alert | -11 -10 -10 ------- Run | Yrd Mat Min Peak Influence 74 | . 15 74 Initial 4 | . . 4 Average 34 | . 1 60 Maximum Alert Level . | . . . Low Security (%) 100 | 100 100 100 Level 1 . | . . . Level 2 . | . . . Level 3 . | . . . Level 4 . | . . . Level 5 . | . . . High Security . | . . . Max Security . | . . . Squads Dispatched . | . . . Investigation . | . . . Extermination . | . . . Reinforcement . | . . . Assault . | . . . Garrison . | . . . Intercept . | . . . Searches Triggered . | . . . Construction Impeded . | . . . Haulers Reinforced . | . . . Active Scanning Responses . | . . . Cargo Convoy Interrupts . | . . . Stealth | -11 -10 -10 --------- Run | Yrd Mat Min Distress Signals 1 | . . 1 Communications Jammed . | . . . Distress Signals . | . . . Times Spotted 19 | . 1 18 Peak Tracking Total 7 | . 3 7 Tactical Retreats . | . . . Traps | -11 -10 -10 ------- Run | Yrd Mat Min Traps Triggered . | . . . Indirectly . | . . . Trap Hack Attempts . | . . . Triggered . | . . . Disarmed . | . . . Reprogrammed . | . . . Reused . | . . . Traps Extracted . | . . . Installed . | . . . Triggered . | . . . Machines | -11 -10 -10 ---------- Run | Yrd Mat Min Machines Disabled . | . . . Max in Single Turn . | . . . Machines Repaired . | . . . Machines Dismantled . | . . . Machines Sabotaged . | . . . Overloaded Fab Kills . | . . . Hacking | -11 -10 -10 --------- Run | Yrd Mat Min Machines Accessed 2 | . 2 . Terminals 1 | . 1 . Fabricators . | . . . Repair Stations . | . . . Recycling Units 1 | . 1 . Scanalyzers . | . . . Garrison Access . | . . . Total Hacks 3 | . 3 . Successful 2 | . 2 . Failed 1 | . 1 . Catastrophic . | . . . Database Lockouts . | . . . Manual . | . . . Terminals 2 | . 2 . Fabricators . | . . . Repair Stations . | . . . Recycling Units 1 | . 1 . Scanalyzers . | . . . Garrison Access . | . . . Terminal Hacks 1 | . 1 . Prototype ID Bank 1 | . 1 . Fabricator Hacks . | . . . Repair Station Hacks . | . . . Recycling Unit Hacks 1 | . 1 . Retrieve Components 1 | . 1 . Scanalyzer . | . . . Garrison Access Hacks . | . . . Unauthorized Hacks . | . . . Terminals . | . . . Fabricators . | . . . Repair Stations . | . . . Recycling Units . | . . . Scanalyzers . | . . . Garrison Access . | . . . Data Cores Recovered . | . . . Used . | . . . Hacking Detections 1 | . 1 . Full Trace Events . | . . . Feedback Events . | . . . Feedback Blocked . | . . . Robot Schematics Acquired . | . . . Robots Built . | . . . Authchips . | . . . Time . | . . . Total Robot Build Rating . | . . . Part Schematics Acquired . | . . . Parts Built . | . . . Authchips . | . . . Time . | . . . Total Part Build Rating . | . . . Parts Repaired . | . . . Time . | . . . Parts Recycled . | . . . Recycled Matter . | . . . Retrieved Matter . | . . . Retrieved Components 2 | . 2 . Parts Scanalyzed . | . . . Part Schematics Acquired . | . . . Parts Damaged . | . . . Bothacking | -11 -10 -10 ------------ Run | Yrd Mat Min Used RIF Installer . | . . . Robots Hacked . | . . . Non-combat . | . . . Combat . | . . . Robot Hacks Applied . | . . . Relay Couplers Released . | . . . Fabnet Peak Effective % . | . . . Robots Rewired . | . . . Allies Hacked . | . . . Hacks Repelled . | . . . Allies | -11 -10 -10 -------- Run | Yrd Mat Min Total Allies . | . . . Largest Group . | . . . Highest-Rated Group . | . . . Highest-Rated Ally . | . . . Total Orders . | . . . Ally Attacks . | . . . Total Damage . | . . . Kills . | . . . Allies Corrupted . | . . . Allies Melted . | . . . Intel | -11 -10 -10 ------- Run | Yrd Mat Min Robot Analysis Total . | . . . Derelict Logs Recovered 1 | . . 1 Drone Launches . | . . . Drone Recoveries . | . . . Exploration | -11 -10 -10 ------------- Run | Yrd Mat Min Turns Passed 774 | 74 271 429 Spaces Moved 553 | 54 208 291 Core 10 | 9 . 1 Treads 18 | . . 18 Legs 525 | 45 208 272 Wheels . | . . . Hover . | . . . Flight . | . . . Fastest Speed 50 | 50 120 120 Average Speed 120 | 108 120 122 Slowest Speed 160 | 120 120 160 Overloaded Moves . | . . . Propulsion Burnouts . | . . . Robots Hopped . | . . . Cave-ins Triggered . | . . . Exploration Rate (%) 27 | 3 30 49 Regions Visited 2 Branch Regions 1 Pre-discovered Areas . | . . . Known Exits Taken . | . . . Unknown Exits Taken 2 | 1 1 . Scrap Searched . | . . . Spaces Dug . | . . . Terrain Destroyed . | . . . Melee . | . . . Projectile . | . . . AOE . | . . . Terrain Rammed . | . . . Walls Destroyed . | . . . Machines Disabled . | . . . Actions | -11 -10 -10 --------- Run | Yrd Mat Min Total 636 | 69 230 337 Wait 25 | . 17 8 Move 551 | 53 207 291 Hop . | . . . Pick Up 15 | 12 3 . Fast Attach . | . . . Attach 11 | 4 1 6 Detach . | . . . Swap . | . . . Drop 2 | . 2 . Fire 30 | . . 30 Melee . | . . . Ram . | . . . Kick 2 | . . 2 Crush . | . . . Escape Stasis . | . . . Rewire . | . . . Trap . | . . . Miscellaneous . | . . . Route ------- -11/Scrapyard -10/Materials -10/Mines (discovered 2 exits: [*Mat x2]) History --------- Turn | Location | Event 5 | -11/Scrapyard | Discovered new exit (range 15) 75 | -11/Scrapyard | Entered Materials 214 | -10/Materials | Discovered new exit (range 16) 314 | -10/Materials | Build established: Mutant 346 | -10/Materials | Entered Mines 417 | -10/Mines | Learned 2 Materials zone layouts 483 | -10/Mines | Discovered new exit (range 14) 540 | -10/Mines | Discovered new exit (range 12) 653 | -10/Mines | Assembled infested the area 713 | -10/Mines | Core integrity fell below 50% 733 | -10/Mines | Lost 4 parts (1p1n2w) 750 | -10/Mines | Core integrity fell below 20% 775 | -10/Mines | Destroyed by as-48575 with Assembled Blade Last Messages --------------- Aluminum Leg destroyed. U-05 Engineer lays Concrete. The unstable cave ceiling collapses. U-05 Engineer lays Concrete. The unstable cave ceiling collapses. U-05 Engineer lays Concrete. Lgt. Ion Engine destroyed. U-05 Engineer lays Concrete. as-62509 sneak attacks. T-07 Excavator system corrupted by crushing effect. T-07 Excavator destroyed. U-05 Engineer lays Concrete. as-48575 sneak attacks. U-05 Engineer system corrupted by crushing effect. U-05 Engineer system terminally corrupted. as-48575 sneak attacks. R-06 Scavenger destroyed. Lgt. Treads severed. Map ----- +----------------------------------------------------+ | ?????????????????## ##?## #???? | | ????????????????## #??## ##??? | | ????????????????# #?## #??? | | ????????????????## ## ##?# #??? | | ?????????????????###?# ##?# ### ##?? | | ?????????????????????# #### < #### ##? | | ?????????????????????## ## #?# #? | | ?????????????????????## ## #? | | ?????????????????????# ## ##? | | ?????????????????????# ### ##?? | | ?????????????????????## #?####??? | | ??????????????????????## #???????? | | ???????????????????????## #???????? | | ????????????????????????# #???????? | | ????????????????????????# #???????? | | ????????????????????????# ##???????? | | ????????????????????????## ##????????? | | ?????????????????????????## ##????????? | | ??????????????????????????## ##???????? | | ????? #????????????????????## ##??????? | | ???? #?????????????????????## #??????? | | ??## #??????????????????????## #??????? | | ?# ????????????????????????## #??????? | | # ????????????????????????## ##??????? | | ????????????????########## #???????? | | ?????????????????# a@ k ##??????? | | ?????????????????# a######## #??????? | | % ??????????????????# #??????## ##?????? | | #??????????????????# ##??????# ##????? | | #????######????????#% #??????# #????? | | [$#????# ##??????## #??????# #????? | | % #????# ##?##### #??????## #????? | | = #?????# ### ##???????## #????? | | ###??????## ##??????##### #????? | | #???????### ##???????# ##???? | | #????#### ##????##### ##??? | | ###### # ##?????# ## ##?? | | ## ## %######## ### ##? | | ## ######?# #? | | # # % #??????## #? | | ##########??????## #? | | # # #??????????????## ##? | | # ##### ########???????## #?? | | # ##??? ### #???????# #?? | | # #######???### #???????# #?? | | #####???????????# ### #??????# #?? | | ????????????????##### #??????# #?? | | ?????????????????# #??????## #?? | | ?????????????????# #???????## ##?? | | ?????????????????# #????????######??? | +----------------------------------------------------+ Best States ------------- Heat Dissipation 25 Energy Generation 10 Energy Capacity 250 Matter Stores 300 Matter Capacity 300 Sight Range 16 Terrain Scan Density 10 Resistance: KI 20 Resistance: TH 20 Resistance: EX 20 Resistance: EM 20 Resistance: I 20 Resistance: S 20 Resistance: P 20 Evasion (%) 55 Recoil Reduction 2 Offensive Hacking 10 Item Schematics ----------------- None Robot Schematics ------------------ None Fabricated ------------ Nothing Alien Tech Used ----------------- None Achievements -------------- None Challenges ------------ None Game ------ Seed MasterScrapBoomstick Manual? 0 Play Time 00:11:53 Cumulative 10.8 hours Start 2024.03.23 @ 03:34:10 End 2024.03.23 @ 03:43:46 Sessions 1 Manual Loads 0 Difficulty Adventurer Special Mode None Game No. 5 Rogue 0 Adventurer 5 Explorer 0 Win Type - Total 0 Types 0/0/0/0/0/0/0/0/0 Lore% 13 Gallery% 10 Achievement% 11 Wizard Run 0 Options --------- Layout 1 ASCII 0 Keyboard 0 Movement Mouse Keybinds 0 Fullscreen 1 Font 24/Smallcaps Map View 50x35 Zoom Use 0% Tactical HUD 0 Map Filters NONE Filters NONE Steam 1 RUN: 79f446c6-f1b1-47a7-bc4e-08f8ed1abd81